bitfinex/quotes_ETHUSD_20250426
["timestamp","ask_amount","ask_price","bid_price","bid_amount"]
[1745631769600,5.51938838,1811.8,1811.4,5.5204261]
[1745631770014,8.05854283,1811.9,1811.4,5.5204261]
[1745631770329,2.53928049,1811.9,1811.5,5.52017794]
[1745631771028,2.53928049,1811.9,1811.6,5.51992191]
[1745631771226,0.7693,1811.9,1811.6,5.51992191]
[1745631771524,0.7693,1811.9,1811.7,5.51944219]
[1745631772127,4.855,1812.0,1811.8,5.51913009]
[1745631773015,4.855,1812.0,1811.9,5.51906838]
[1745631773216,4.855,1812.0,1811.7,5.51955655]
[1745631773417,5.6745,1812.0,1811.7,5.51955655]
[1745631773622,4.855,1812.0,1811.9,5.51906838]
[1745631776459,3.0,1812.5,1812.0,0.7656]
[1745631776646,13.37436978,1812.5,1812.1,5.5183985]
[1745631777046,7.857,1812.5,1812.1,5.5183985]
[1745631777545,13.3743572,1812.5,1812.1,5.5183985]
[1745631777733,17.00036072,1812.5,1812.1,5.5183985]
[1745631777933,11.48300352,1812.5,1812.1,11.03664746]
[1745631778157,11.48300352,1812.5,1812.2,5.51813778]
[1745631778728,4.857,1812.5,1812.3,5.51784967]
[1745631779062,4.857,1812.5,1812.3,5.51764285]
[1745631779257,4.857,1812.5,1812.4,5.51754579]
[1745631779657,4.857,1812.5,1812.3,5.51767881]
[1745631780261,4.857,1812.5,1812.3,5.51763095]
[1745631780472,4.857,1812.5,1812.3,5.51771427]
[1745631781166,4.857,1812.5,1812.2,5.51798877]
[1745631781348,4.857,1812.5,1812.1,5.51841165]
[1745631781548,4.857,1812.5,1812.2,5.5180174]
[1745631781952,5.51765523,1812.4,1811.9,6.07138983]
[1745631782159,0.7582,1812.3,1812.0,5.51851472]
[1745631782730,0.7582,1812.3,1812.0,11.03711277]
[1745631783275,0.7582,1812.3,1812.0,5.51851472]
[1745631784390,6.27606664,1812.3,1811.8,6.29145519]
[1745631784569,7.45543968,1812.3,1811.8,5.51914903]
[1745631785080,6.2770979,1812.0,1811.6,5.51979256]
[1745631785282,6.2770979,1812.0,1811.6,5.51994562]
[1745631785283,11.1330979,1812.0,1811.6,5.51994562]
[1745631785468,5.6142,1812.0,1811.6,5.51994562]
[1745631787263,5.6142,1812.0,1811.7,5.51948449]
[1745631788205,11.13310018,1812.0,1811.5,5.52003971]
[1745631788381,11.13310018,1812.0,1811.5,5.52028705]
[1745631788779,5.6142,1812.0,1811.5,5.52005673]
[1745631789090,5.6142,1812.0,1811.6,5.51987039]
[1745631789471,11.1330012,1812.0,1811.6,5.51987039]
[1745631789664,11.1330012,1812.0,1811.5,6.21081104]
[1745631789868,11.1330012,1812.0,1811.4,5.52046712]
[1745631790071,5.51927608,1811.9,1811.4,5.52041844]
[1745631790307,5.51942335,1811.8,1811.4,5.52041844]
[1745631790483,0.7582,1811.7,1811.4,5.52041844]
[1745631790992,0.7582,1811.7,1811.3,5.52089554]
[1745631791173,4.821,1811.6,1811.2,5.5211548]
[1745631791570,10.34103896,1811.6,1811.2,5.5211548]
[1745631792406,10.34103896,1811.6,1811.1,5.52133369]
[1745631792617,5.52029663,1811.5,1811.0,0.7723]
[1745631792785,6.27885746,1811.4,1811.0,5.52167104]
[1745631792983,5.52089894,1811.3,1810.9,5.52196916]
[1745631793295,4.821,1811.2,1810.8,5.52222735]
[1745631793595,0.7582,1811.1,1810.8,5.52222735]
[1745631793800,0.7582,1811.1,1810.8,5.522188]
[1745631793998,0.7582,1811.1,1810.7,5.522573]
[1745631794500,0.7582,1811.1,1810.7,5.52252641]
[1745631794907,0.7582,1811.1,1810.8,5.52238594]
[1745631798422,0.7582,1811.1,1810.6,6.29518959]
[1745631798758,0.7582,1811.1,1810.9,5.52186954]
[1745631799018,0.7582,1811.1,1810.9,5.52189447]
[1745631800098,4.821,1811.2,1811.1,5.52150626]
[1745631800702,4.821,1811.2,1811.0,11.04338585]
[1745631800915,4.821,1811.2,1811.1,5.52150626]
[1745631802278,4.821,1811.2,1811.1,6.68731825]
[1745631803386,4.821,1811.2,1811.1,5.52150626]
[1745631804118,4.821,1811.2,1810.9,5.52199877]
[1745631804490,0.7995,1811.1,1810.8,5.52226134]
[1745631804980,0.7995,1811.1,1810.7,5.52256944]
[1745631805181,6.32116948,1811.1,1810.6,5.52291306]
[1745631805385,0.63211695,1811.0,1810.6,5.52291306]
[1745631806265,0.63211695,1811.0,1810.5,5.52316135]
[1745631806417,6.15406359,1811.0,1810.6,5.52291932]
[1745631807531,0.63211695,1811.0,1810.6,11.04574378]
[1745631808032,0.63211695,1811.0,1810.6,5.52282446]
[1745631808528,0.63211695,1811.0,1810.6,11.04563153]
[1745631808726,0.63211695,1811.0,1810.6,5.52278525]
[1745631809320,0.8135,1810.8,1810.4,5.52343317]
[1745631809524,11.15902913,1810.8,1810.3,5.52370343]
[1745631810238,5.52275268,1810.7,1810.3,5.52370343]
[1745631810543,16.68180825,1810.8,1810.3,5.52370343]
[1745631810703,1.66818082,1810.7,1810.3,5.52370343]
[1745631810904,5.6365,1810.8,1810.2,0.5525]
[1745631811102,5.6365,1810.8,1810.4,5.52344914]
[1745631811737,11.15892279,1810.8,1810.4,5.52344914]
[1745631812740,16.68160874,1810.8,1810.3,5.5239463]
[1745631812924,5.5227475,1810.7,1810.3,5.5239463]
[1745631813240,11.15907269,1810.8,1810.4,5.52360945]
[1745631813432,12.82720586,1810.8,1810.4,5.52360945]
[1745631813845,7.30463317,1810.8,1810.1,9.13956477]
[1745631814035,7.30463317,1810.8,1810.4,5.52346352]
[1745631814775,12.82705511,1810.8,1810.3,5.52390626]
[1745631814957,12.01374447,1810.8,1810.3,5.52390626]
[1745631815160,2.01487445,1810.7,1810.4,5.52349901]
[1745631815369,7.53769293,1810.7,1810.3,5.52375687]
[1745631815539,5.52338864,1810.5,1810.1,5.52439452]
[1745631815739,5.6375,1810.4,1810.0,0.4079608]
[1745631816077,5.6375,1810.4,1810.0,5.93263403]
[1745631816240,6.75359622,1810.4,1810.0,11.45732196]
[1745631816585,12.27734407,1810.4,1810.0,5.93263403]
[1745631816739,6.75359622,1810.4,1810.1,5.52453452]
[1745631816940,6.75359622,1810.4,1810.0,5.93259683]
[1745631817679,5.6375,1810.4,1810.2,5.52410844]
[1745631818543,4.824,1810.4,1810.3,5.5239463]
[1745631818746,4.81562055,1810.4,1810.3,5.5239463]
[1745631819057,4.81562055,1810.4,1810.2,5.52406688]
[1745631819579,4.81562055,1810.4,1810.2,5.52401185]
[1745631819750,6.72414408,1810.7,1810.5,5.52322984]
[1745631819751,4.803,1810.7,1810.5,5.52322984]
[1745631819952,4.803,1810.7,1810.4,5.52347871]
[1745631820344,4.803,1810.7,1810.3,1.40043892]
[1745631820345,4.803,1810.7,1810.5,5.52312907]
[1745631820757,4.803,1810.7,1810.6,5.52303103]
[1745631820958,4.803,1810.7,1810.5,5.5231383]
[1745631821158,4.803,1810.7,1810.6,5.52303103]
[1745631823380,4.803,1810.7,1810.5,5.52312272]
[1745631824495,4.803,1810.7,1810.5,11.04623773]
[1745631824797,4.803,1810.7,1810.6,5.52303103]
[1745631824953,4.803,1810.7,1810.5,5.52318272]
[1745631825487,4.803,1810.7,1810.5,11.04632955]
[1745631825691,4.803,1810.7,1810.6,5.52303103]
[1745631826353,17.3777,1811.2,1810.9,5.52211607]
[1745631826575,4.803,1811.1,1810.8,5.52235193]
[1745631826960,4.803,1811.1,1810.5,5.52305696]
[1745631826961,6.33765586,1811.0,1810.5,5.52305696]
[1745631827177,5.52213237,1810.9,1810.5,5.52305696]
[1745631827381,12.23051122,1810.9,1810.4,5.52345257]
[1745631827581,6.70811119,1810.9,1810.5,5.52329224]
[1745631827755,1.18597882,1810.9,1810.5,5.52329224]
[1745631828165,0.8157,1811.0,1810.8,5.5222463]
[1745631829311,0.8157,1811.0,1810.7,5.52254971]
[1745631831830,0.8157,1811.0,1810.8,5.52239871]
[1745631832325,0.8157,1811.0,1810.7,5.52256951]
[1745631833724,0.8157,1811.0,1810.6,5.52286031]
[1745631834046,0.8157,1811.0,1810.6,5.52303103]
[1745631834213,0.8157,1811.0,1810.5,6.07567814]
[1745631834416,0.8157,1811.0,1810.6,5.5229276]
[1745631835050,0.8157,1811.0,1810.7,5.52269352]
[1745631835249,6.33758373,1811.0,1810.6,5.5229276]
[1745631835553,0.7684,1810.9,1810.5,5.52318233]
[1745631836052,0.7684,1810.9,1810.5,5.52312374]
[1745631836238,6.9195452,1810.9,1810.5,5.52312374]
[1745631836917,6.9195452,1810.9,1810.4,5.52352394]
[1745631837111,6.9195452,1810.9,1810.5,5.52332015]
[1745631837522,1.39742528,1810.9,1810.5,5.52332015]
[1745631837707,1.39742528,1810.9,1810.6,5.52299096]
[1745631838022,1.39742528,1810.9,1810.5,5.52318254]
[1745631838418,4.803,1810.8,1810.6,5.52288854]
[1745631838623,4.803,1810.8,1810.6,5.52282724]
[1745631838819,4.803,1810.8,1810.6,5.52286199]
[1745631839451,4.803,1810.8,1810.7,5.52272601]
[1745631840350,4.803,1810.8,1810.6,5.52290916]
[1745631841363,4.803,1810.8,1810.4,5.52350455]
[1745631841525,10.88262193,1810.8,1810.4,5.52350455]
[1745631842553,5.36014,1810.8,1810.5,5.52331439]
[1745631842751,4.803,1810.8,1810.5,5.52331439]
[1745631842929,10.32549825,1810.8,1810.4,5.52345633]
[1745631843319,4.803,1810.8,1810.4,5.52345633]
[1745631843535,10.3254247,1810.8,1810.4,5.52345633]
[1745631843818,0.7911,1810.7,1810.4,5.52345633]
[1745631844042,0.77796166,1810.7,1810.4,5.52345633]
[1745631844242,0.77796166,1810.7,1810.3,5.52375325]
[1745631844553,0.77796166,1810.7,1810.4,5.52352246]
[1745631844716,0.77796166,1810.7,1810.4,5.52343981]
[1745631844921,0.77796166,1810.7,1810.5,5.52307869]
[1745631845458,0.77796166,1810.7,1810.4,5.52350381]
[1745631848082,0.77796166,1810.7,1810.3,6.07629589]
[1745631848571,6.30073051,1810.7,1810.2,6.84219287]
[1745631848772,0.77796166,1810.7,1810.4,5.52360074]
[1745631849073,0.77796166,1810.7,1810.3,11.04754226]
[1745631849278,0.77796166,1810.7,1810.4,5.52360078]
[1745631849480,0.77796166,1810.7,1810.5,5.52332531]
[1745631850283,0.77796166,1810.7,1810.4,5.52346656]
[1745631850455,0.77796166,1810.7,1810.3,11.04755433]
[1745631850656,0.77796166,1810.7,1810.3,11.04751041]
[1745631851484,0.77796166,1810.7,1810.3,5.52373332]
[1745631852074,0.77796166,1810.7,1810.3,11.04746674]
[1745631852257,0.77796166,1810.7,1810.3,5.52373332]
[1745631852457,1.88830428,1810.7,1810.1,5.52428638]
[1745631852661,6.29730696,1810.5,1810.0,6.48516524]
[1745631852861,4.803,1810.4,1810.1,5.52452875]
[1745631853678,4.803,1810.4,1810.0,5.93270984]
[1745631853897,4.803,1810.4,1810.0,5.93260137]
[1745631854186,4.803,1810.4,1810.1,5.52454315]
[1745631854492,4.803,1810.4,1810.2,5.52402545]
[1745631854657,4.803,1810.4,1810.3,5.5239463]
[1745631856080,4.803,1810.4,1810.2,5.52407986]
[1745631856250,4.803,1810.4,1810.0,0.4079608]
[1745631856458,0.7738,1810.3,1810.0,0.4079608]
[1745631856658,7.40786496,1810.3,1810.0,0.4079608]
[1745631857781,1.88386184,1810.3,1810.0,5.93275181]
[1745631858267,0.7738,1810.3,1810.0,0.4079608]
[1745631859088,4.803,1810.4,1810.0,1.2284608]
[1745631859291,4.803,1810.4,1810.2,5.52403741]
[1745631859689,1.11034262,1810.7,1810.3,5.5239463]
[1745631859893,4.804,1810.6,1810.4,5.52349794]
[1745631860379,4.804,1810.5,1810.4,5.52349794]
[1745631860779,4.804,1810.5,1810.3,5.52379111]
[1745631861179,4.804,1810.5,1810.2,5.52401353]
[1745631862003,4.804,1810.5,1810.1,5.52437974]
[1745631862200,6.33574237,1810.4,1810.0,5.93261167]
[1745631862401,0.8121,1810.4,1810.0,5.93258503]
[1745631862608,0.8121,1810.4,1810.1,5.52432271]
[1745631863384,0.8121,1810.4,1810.0,5.93260618]
[1745631863582,0.8121,1810.4,1810.2,5.52424185]
[1745631863908,0.8121,1810.4,1810.1,5.52435052]
[1745631864410,0.8121,1810.4,1810.2,5.5242512]
[1745631865104,0.8121,1810.4,1810.1,5.52437671]
[1745631866072,0.8121,1810.4,1810.0,5.93267168]
[1745631866443,0.8121,1810.4,1810.0,5.93261351]
[1745631866994,0.8121,1810.4,1810.1,5.52441992]
[1745631867210,0.8121,1810.4,1810.2,5.5242228]
[1745631867699,0.8121,1810.4,1810.1,5.52439316]
[1745631868107,0.8121,1810.4,1810.2,5.5242316]
[1745631868407,0.8121,1810.4,1810.1,5.52444733]
[1745631868807,0.8121,1810.4,1810.1,5.52443552]
[1745631869012,0.8121,1810.4,1810.1,5.52455665]
[1745631870080,0.8121,1810.4,1810.1,5.52437123]
[1745631870295,0.8121,1810.4,1810.2,5.52405236]
[1745631870788,0.8121,1810.4,1810.0,5.93260229]
[1745631871208,6.33576271,1810.4,1810.0,5.93260229]
[1745631871586,13.52596612,1810.4,1810.0,0.4079608]
[1745631871787,8.00207803,1810.4,1810.0,0.4079608]
[1745631872013,2.47841532,1810.4,1810.0,0.4079608]
[1745631872184,5.52406395,1810.3,1810.0,0.4079608]
[1745631872519,8.00216117,1810.4,1810.0,5.93280831]
[1745631872731,2.47841532,1810.4,1810.1,5.52455415]
[1745631873138,2.47841532,1810.4,1810.0,5.93262559]
[1745631873324,8.00207462,1810.4,1810.0,5.93262559]
[1745631874436,2.47841532,1810.4,1810.0,5.93259802]
[1745631874633,0.8121,1810.4,1810.0,5.93259802]
[1745631875292,6.33583395,1810.4,1810.0,5.93259802]
[1745631877242,0.8121,1810.4,1810.0,0.4079608]
[1745631877427,5.52408315,1810.3,1810.0,0.4079608]
[1745631878528,6.335877,1810.4,1810.0,5.93276984]
[1745631878529,9.335935,1810.4,1810.0,5.93276984]
[1745631879303,11.36376814,1810.4,1810.0,5.93276984]
[1745631879727,4.804,1810.3,1810.0,5.93276984]
[1745631880644,10.32794933,1810.3,1810.0,0.4079608]
[1745631881346,4.804,1810.3,1810.0,0.4079608]
[1745631882510,4.804,1810.3,1810.0,5.93265716]
[1745631883648,4.804,1810.3,1810.0,5.93265039]
[1745631883853,4.804,1810.3,1810.1,5.52445482]
[1745631884142,4.804,1810.3,1810.1,5.52435105]
[1745631886017,4.804,1810.3,1810.2,5.52425146]
[1745631886217,4.804,1810.3,1810.1,5.52439279]
[1745631889837,4.804,1810.3,1810.1,5.52435689]
[1745631890158,4.804,1810.3,1810.1,5.52434334]
[1745631892263,4.804,1810.3,1810.1,11.04872834]
[1745631892431,4.804,1810.3,1810.1,5.52434334]
[1745631893463,4.804,1810.3,1810.1,5.52444327]
[1745631893977,6.13792348,1810.7,1810.4,5.52364118]
[1745631893978,0.8225,1810.7,1810.4,5.52364118]
[1745631894175,4.803,1810.6,1810.4,5.52364118]
[1745631894871,4.803,1810.6,1810.3,5.52384504]
[1745631895165,10.32625461,1810.6,1810.2,5.52425025]
[1745631895339,11.99341741,1810.6,1810.2,5.52425025]
[1745631895748,6.4701628,1810.6,1810.2,11.04826404]
[1745631896153,6.4701628,1810.6,1810.3,5.52392794]
[1745631896875,11.99319889,1810.6,1810.2,5.52413191]
[1745631897240,0.7677,1810.4,1810.0,1.1694608]
[1745631897447,6.29151358,1810.4,1810.0,5.93278347]
[1745631897758,6.29151358,1810.4,1810.0,5.93280276]
[1745631898669,4.803,1810.3,1810.0,5.93280276]
[1745631901376,4.803,1810.3,1810.0,5.93262589]
[1745631903150,5.36007,1810.3,1810.0,0.4079608]
[1745631903561,10.88416819,1810.3,1810.0,0.4079608]
[1745631904880,5.36007,1810.3,1810.0,0.4079608]
[1745631905183,5.36007,1810.3,1810.0,5.93269612]
[1745631905984,5.36007,1810.3,1810.0,0.4079608]
[1745631906487,5.52455665,1810.1,1810.0,0.4079608]
[1745631906648,9.13959557,1810.1,1810.0,0.4079608]
[1745631907993,9.89489557,1810.1,1810.0,0.4079608]
[1745631908373,9.27985665,1810.1,1810.0,0.4079608]
[1745631912899,4.803,1810.2,1810.0,0.4079608]
[1745631913196,3.0,1810.1,1810.0,0.4079608]
[1745631913697,8.52455665,1810.1,1810.0,0.4079608]
[1745631914903,11.16503906,1810.1,1810.0,0.4079608]
[1745631918506,17.27503906,1810.1,1810.0,0.4079608]
[1745631919999,16.51973906,1810.1,1810.0,0.4079608]
[1745631920316,10.99518241,1810.1,1810.0,0.4079608]
[1745631920470,16.51973906,1810.1,1810.0,0.4079608]
[1745631921010,10.99518241,1810.1,1810.0,0.4079608]
[1745631921305,16.51973906,1810.1,1810.0,0.4079608]
[1745631921671,10.40973906,1810.1,1810.0,0.4079608]
[1745631922407,4.88518241,1810.1,1810.0,0.4079608]
[1745631922616,10.40973906,1810.1,1810.0,0.4079608]
[1745631928403,11.21783906,1810.1,1810.0,0.4079608]
[1745631930525,17.02983906,1810.1,1810.0,0.4079608]
[1745631930830,0.61503892,1809.6,1809.2,0.8085]
[1745631931131,5.52712129,1809.3,1809.1,0.8085]
[1745631931322,6.14192977,1809.4,1809.1,0.8085]
[1745631932089,5.52746386,1809.2,1808.8,0.7937]
[1745631932289,5.35574639,1809.1,1808.8,6.3220354]
[1745631932533,5.35574639,1809.1,1808.8,0.7937]
[1745631933039,5.35574639,1809.1,1808.8,6.32217966]
[1745631934292,5.52808757,1809.0,1808.8,0.7937]
[1745631934521,1.0883834,1809.0,1808.8,0.7937]
[1745631934937,6.61632978,1809.0,1808.8,0.7937]
[1745631935731,1.0883834,1809.0,1808.8,0.7937]
[1745631936234,5.52833183,1808.9,1808.5,6.32299671]
[1745631936428,0.79841542,1808.9,1808.6,5.52887898]
[1745631936613,1.0883834,1809.0,1808.7,6.32241913]
[1745631936822,1.0883834,1809.0,1808.8,5.52847051]
[1745631936996,4.803,1809.1,1808.8,5.52847051]
[1745631937589,4.803,1809.1,1808.7,6.32235225]
[1745631937905,4.803,1809.1,1808.7,11.85103792]
[1745631938101,4.803,1809.1,1808.7,6.32235225]
[1745631938329,4.803,1809.1,1808.7,11.85105023]
[1745631938534,5.9727869,1809.1,1808.7,0.7937]
[1745631938693,5.9727869,1809.1,1808.7,6.32231804]
[1745631939438,11.50051927,1809.1,1808.7,6.32231804]
[1745631939931,5.9727869,1809.1,1808.8,5.52843244]
[1745631940434,11.50040382,1809.1,1808.7,6.32233773]
[1745631940736,1.15004038,1809.0,1808.7,6.32233773]
[1745631941433,0.61503892,1808.8,1808.5,0.8279]
[1745631941633,4.804,1808.7,1808.5,0.8279]
[1745631941796,4.804,1808.7,1808.5,5.52924134]
[1745631942920,4.804,1808.7,1808.4,5.52958167]
[1745631943112,4.804,1808.7,1808.4,11.05916129]
[1745631943695,4.804,1808.7,1808.5,5.52924189]
[1745631943900,16.99717561,1809.4,1808.9,5.52822157]
[1745631943901,3.0,1809.2,1808.9,5.52822157]
[1745631944130,4.804,1809.1,1808.9,5.52822157]
[1745631944318,4.804,1809.1,1808.9,6.35612157]
[1745631944527,4.804,1809.1,1809.0,5.52791597]
[1745631945440,16.99717561,1809.4,1808.9,0.8279]
[1745631945627,4.804,1809.3,1809.2,5.52730488]
[1745631945801,4.804,1809.3,1809.2,6.35520488]
[1745631946208,4.804,1809.3,1809.2,0.8279]
[1745631946913,10.33111905,1809.3,1809.0,0.8279]
[1745631947114,10.33111905,1809.3,1808.6,0.8279]
[1745631947332,1.0331119,1809.2,1808.9,5.52820577]
[1745631947647,1.0331119,1809.2,1808.8,6.35622688]
[1745631947848,1.0331119,1809.2,1808.8,6.35620302]
[1745631949861,1.0331119,1809.2,1808.9,5.52821208]
[1745631950758,1.0331119,1809.2,1808.8,6.35626127]
[1745631951049,5.41903892,1809.3,1808.8,0.8279]
[1745631951218,5.52791251,1809.1,1808.7,0.8211]
[1745631952546,5.52791251,1809.1,1808.7,6.3498977]
[1745631953266,6.31292403,1809.0,1808.6,6.301696]
[1745631953428,4.804,1808.9,1808.6,0.7727]
[1745631953629,5.4352924,1808.9,1808.6,0.7727]
[1745631954132,5.4352924,1808.9,1808.4,5.52959713]
[1745631954133,5.52866053,1808.8,1808.4,0.7727]
[1745631955053,5.52866053,1808.8,1808.4,6.30243681]
[1745631955366,1.15789919,1808.8,1808.4,6.30243681]
[1745631955660,6.68643482,1808.8,1808.4,6.30243681]
[1745631955865,1.15789919,1808.8,1808.4,6.30243681]
[1745631956370,1.15789919,1808.8,1808.5,5.52930049]
[1745631956730,1.15789919,1808.8,1808.4,6.30226248]
[1745631958551,1.15789919,1808.8,1808.5,5.52942475]
[1745631958769,6.68653051,1808.8,1808.4,6.30226284]
[1745631959370,1.15789919,1808.8,1808.4,11.83179692]
[1745631959763,1.15789919,1808.8,1808.5,5.52927786]
[1745631959981,1.15789919,1808.8,1808.2,0.4079608]
[1745631959982,5.53005585,1808.3,1808.2,0.4079608]
[1745631960150,14.52112786,1808.3,1808.2,0.4079608]
[1745631961387,4.804,1808.3,1808.2,0.4079608]
[1745631962352,10.33405585,1808.3,1808.2,0.4079608]
[1745631962591,4.804,1808.3,1808.2,0.4079608]
[1745631964689,5.52962578,1808.5,1808.2,0.4079608]
[1745631964893,4.805,1808.4,1808.2,0.4079608]
[1745631965755,5.83846258,1808.4,1808.2,0.4079608]
[1745631965955,11.36822922,1808.4,1808.2,0.4079608]
[1745631966691,5.83846258,1808.4,1808.2,0.4079608]
[1745631967587,11.36822625,1808.4,1808.2,0.4079608]
[1745631967792,5.83846258,1808.4,1808.2,0.4079608]
[1745631968770,6.11390211,1808.3,1808.2,0.4079608]
[1745631969490,0.58384626,1808.3,1808.2,0.4079608]
[1745631970273,6.11390211,1808.3,1808.2,0.4079608]
[1745631971064,0.58384626,1808.3,1808.2,0.4079608]
[1745631971800,4.805,1808.3,1808.2,1.1900608]
[1745631972359,10.33505585,1808.3,1808.2,0.4079608]
[1745631973378,4.805,1808.3,1808.2,0.4079608]
[1745631973999,14.12265585,1808.3,1808.2,0.4079608]
[1745631974195,4.805,1808.3,1808.2,0.4079608]
[1745631976583,5.83848613,1808.3,1808.2,0.4079608]
[1745631977505,4.805,1808.3,1808.2,5.93832248]
[1745631977810,8.09129919,1808.8,1808.3,0.8166]
[1745631978107,5.52920656,1808.6,1808.3,0.8166]
[1745631978306,10.33413632,1808.7,1808.3,6.34659135]
[1745631978516,4.805,1808.7,1808.3,6.34659135]
[1745631978872,4.805,1808.6,1808.4,5.52950919]
[1745631979169,4.805,1808.6,1808.4,11.05906918]
[1745631979576,4.805,1808.6,1808.5,5.52944429]
[1745631979972,4.805,1808.6,1808.5,6.34604429]
[1745631986456,16.584,1809.0,1808.5,6.34604429]
[1745631986609,4.804,1808.9,1808.8,6.31744185]
[1745631988026,4.804,1809.2,1809.1,5.52761041]
[1745631988325,4.804,1809.2,1809.1,6.31671041]
[1745631989613,4.804,1809.2,1808.9,6.31707661]
[1745631989794,4.804,1809.2,1809.0,5.52778415]
[1745631989999,4.804,1809.2,1809.1,5.52761041]
[1745631990302,4.804,1809.2,1809.1,6.31671041]
[1745631990936,4.804,1809.2,1808.7,8.52878341]
[1745631990937,4.804,1809.2,1808.9,6.31716373]
[1745631991117,5.41903892,1809.2,1808.8,5.52833341]
[1745631991438,5.41903892,1809.2,1808.9,5.52817596]
[1745631992320,5.41903892,1809.2,1808.8,5.52834287]
[1745631992647,5.41903892,1809.2,1808.8,11.05668574]
[1745631992814,6.51366428,1809.2,1808.9,5.52816151]
[1745631993019,0.7636,1809.1,1808.9,5.52816151]
[1745631993327,0.7636,1809.1,1808.9,5.52799235]
[1745631994232,0.7636,1809.1,1808.8,5.52840719]
[1745631996549,5.89862536,1809.2,1808.9,5.52809627]
[1745631997650,5.89862536,1809.2,1808.9,5.52799627]
[1745631998339,5.89862536,1809.2,1808.9,5.52798947]
[1745631998840,4.804,1809.2,1809.1,5.52761041]
[1745631999043,4.804,1809.2,1809.0,0.7808]
[1745631999227,4.804,1809.2,1809.0,6.30866657]
[1745632000168,4.804,1809.2,1809.0,6.3084784]
[1745632001371,4.804,1809.2,1809.1,5.52761041]
[1745632001863,5.2844,1809.2,1808.8,6.30917847]
[1745632002039,11.63970856,1809.2,1808.8,11.83752555]
[1745632002243,6.1123,1809.2,1808.9,5.52817901]
[1745632004182,11.63962217,1809.2,1808.8,6.30916119]
[1745632004482,6.1123,1809.2,1808.8,11.83745433]
[1745632004630,6.1123,1809.2,1808.9,5.52819767]
[1745632005778,6.1123,1809.2,1808.9,5.52800771]
[1745632008277,4.804,1809.2,1808.9,5.52800771]
[1745632008980,4.804,1809.2,1808.8,6.30916448]
[1745632009279,4.804,1809.2,1808.9,5.528206]
[1745632010491,4.804,1809.2,1808.8,6.30925029]
[1745632010786,6.28321079,1809.3,1808.4,0.61503892]
[1745632010787,0.756,1809.3,1808.6,1.3189]
[1745632010993,4.802,1809.2,1808.9,5.52792826]
[1745632011164,4.802,1809.2,1809.0,5.52787086]
[1745632014260,4.802,1809.2,1808.9,6.29423583]
[1745632015296,4.802,1809.2,1808.9,11.82224193]
[1745632015857,4.802,1809.2,1808.9,6.2942061]
[1745632016195,4.802,1809.2,1808.9,6.29441329]
[1745632016401,6.46323219,1809.2,1808.9,6.29441329]
[1745632016580,6.46323219,1809.2,1808.8,6.29467481]
[1745632016784,11.99064066,1809.2,1808.8,5.52847481]
[1745632017098,0.756,1809.1,1808.8,5.52847481]
[1745632017412,0.756,1809.1,1808.2,1.02299972]
[1745632017413,5.52803941,1809.0,1808.4,0.7662]
[1745632017566,6.28437824,1808.9,1808.5,5.5294079]
[1745632017769,4.802,1808.8,1808.5,5.5294079]
[1745632018591,4.802,1808.8,1808.7,5.52883286]
[1745632018800,4.802,1808.8,1808.6,5.52885149]
[1745632019586,4.802,1808.8,1808.4,1.3189]
[1745632019792,4.802,1808.8,1808.6,5.52901045]
[1745632020265,4.802,1808.8,1808.5,11.05852346]
[1745632020458,4.802,1808.8,1808.5,11.05844063]
[1745632020656,0.61503892,1808.7,1808.2,1.1741608]
[1745632020897,5.53005585,1808.3,1808.2,0.4079608]
[1745632021091,10.33205585,1808.3,1808.2,0.4079608]
[1745632021294,11.70309477,1808.3,1808.2,0.4079608]
[1745632021896,12.12620207,1808.3,1808.2,0.4079608]
[1745632022104,13.89182497,1808.3,1808.2,0.4079608]
[1745632023107,16.89182497,1808.3,1808.2,0.4079608]
[1745632024503,7.7467302,1808.3,1808.2,0.4079608]
[1745632024709,5.9811073,1808.3,1808.2,0.4079608]
[1745632026368,11.51116315,1808.3,1808.2,0.4079608]
[1745632026908,5.2251073,1808.3,1808.2,0.4079608]
[1745632029180,10.75516315,1808.3,1808.2,0.4079608]
[1745632030475,11.53776315,1808.3,1808.2,0.4079608]
[1745632030681,16.30603452,1808.3,1808.2,0.4079608]
[1745632036735,5.53226378,1807.6,1807.3,0.77157873]
[1745632037034,4.802,1807.5,1807.3,6.3045761]
[1745632037536,4.802,1807.5,1807.3,0.77157873]
[1745632037742,4.802,1807.5,1807.3,6.30465626]
[1745632038246,4.802,1807.5,1807.3,0.01517873]
[1745632038398,5.53280956,1807.4,1807.3,0.01517873]
[1745632039230,5.5331414,1807.3,1807.1,0.1]
[1745632039707,6.0383,1807.5,1807.1,0.1]
[1745632039898,11.57099877,1807.5,1807.1,5.63356503]
[1745632040100,5.53281411,1807.4,1807.1,0.1]
[1745632042133,11.57093285,1807.5,1807.1,5.63371523]
[1745632042296,11.57093285,1807.5,1807.1,0.1]
[1745632042795,5.53327288,1807.3,1807.1,0.1]
[1745632043016,5.53311569,1807.3,1807.1,0.1]
[1745632043345,5.53342186,1807.2,1807.1,0.1]
[1745632045243,7.30502432,1807.4,1807.1,0.1]
[1745632045456,8.53282177,1807.4,1807.1,0.9303]
[1745632047326,4.804,1807.3,1807.2,5.53321421]
[1745632048239,4.804,1807.3,1807.1,7.1102451]
[1745632048443,4.804,1807.3,1807.1,0.9303]
[1745632048639,4.804,1807.3,1807.1,6.4639742]
[1745632049140,4.804,1807.3,1807.1,0.9303]
[1745632049538,4.804,1807.3,1807.1,6.46400263]
[1745632050266,4.804,1807.3,1807.1,0.9303]
[1745632050417,4.804,1807.3,1807.1,0.1]
[1745632050611,5.53342186,1807.2,1807.1,0.1]
[1745632051155,6.93526078,1807.2,1807.1,0.1]
[1745632051447,9.93526078,1807.2,1807.1,0.1]
[1745632051752,9.32022186,1807.2,1807.1,0.1]
[1745632053456,11.51113407,1807.3,1807.1,0.1]
[1745632053641,4.804,1807.3,1807.1,0.1]
[1745632053950,6.9504949,1807.3,1807.1,0.1]
[1745632054154,4.804,1807.3,1807.1,0.1]
[1745632054455,12.85968092,1807.5,1807.1,5.63371523]
[1745632054661,4.805,1807.4,1807.1,5.63371523]
[1745632055252,4.805,1807.4,1807.2,5.5331616]
[1745632055749,6.5212135,1807.5,1807.3,0.804]